bitfinex/quotes_ETHUSD_20260225
["timestamp","ask_amount","ask_price","bid_price","bid_amount"]
[1772047389700,0.002,2068.3,2068.1,1.20881366]
[1772047390001,4.41483321,2068.7,2068.1,1.20881366]
[1772047390190,0.002,2068.5,2068.1,1.20881366]
[1772047391799,3.20633152,2068.5,2068.1,1.20881366]
[1772047393775,3.20633152,2068.5,2068.0,7.76656324]
[1772047393976,3.20633152,2068.7,2068.3,2.33906066]
[1772047394202,0.002,2068.8,2068.4,1.937]
[1772047395331,0.002,2069.0,2068.7,0.46759263]
[1772047396706,3.20633152,2069.0,2068.7,0.46759263]
[1772047397124,3.20633152,2069.0,2068.4,1.937]
[1772047397420,3.20633152,2069.0,2068.6,0.46759263]
[1772047398515,3.20633152,2069.0,2068.4,1.937]
[1772047398716,3.20433152,2068.8,2068.4,1.937]
[1772047398921,3.20433152,2068.8,2068.4,2.40459263]
[1772047399793,3.20433152,2068.8,2068.4,1.937]
[1772047400210,3.20433152,2068.8,2068.2,2.40359263]
[1772047400390,3.20433152,2068.8,2068.2,1.936]
[1772047400719,3.20433152,2068.8,2068.4,0.46759263]
[1772047401298,1.20848842,2068.7,2068.4,0.46759263]
[1772047401715,4.41281994,2068.7,2068.4,0.46759263]
[1772047402517,4.41281994,2068.7,2068.6,0.001]
[1772047403116,4.41281994,2068.7,2068.4,0.46859263]
[1772047404230,3.20433152,2068.6,2068.2,1.936]
[1772047404417,3.67192415,2068.6,2068.1,0.001]
[1772047404734,3.20433152,2068.6,2068.1,0.001]
[1772047405901,1.20860526,2068.5,2068.2,0.46759263]
[1772047406107,4.51013953,2068.5,2068.2,0.46759263]
[1772047406722,1.20860526,2068.5,2068.4,0.46759263]
[1772047407226,4.5100707,2068.7,2068.3,0.46759263]
[1772047407431,4.5100707,2068.7,2068.5,0.46759263]
[1772047408503,4.5100707,2068.7,2068.2,2.78924041]
[1772047408723,3.30153427,2068.6,2068.3,0.46759263]
[1772047409338,3.30153427,2068.6,2068.2,0.46759263]
[1772047410632,1.20860526,2068.5,2068.2,0.46759263]
[1772047410933,4.2708936,2068.5,2068.2,0.46759263]
[1772047411134,4.2708936,2068.5,2068.1,0.001]
[1772047411325,4.83401188,2068.7,2068.4,0.46759263]
[1772047411326,4.83410288,2068.7,2068.4,0.46759263]
[1772047411631,7.89639122,2068.7,2068.4,0.46759263]
[1772047414106,7.89639122,2068.7,2068.2,1.68641222]
[1772047414308,7.89639122,2068.7,2068.4,0.46759263]
[1772047415117,3.06228834,2068.6,2068.1,0.46859263]
[1772047415708,3.06228834,2068.6,2068.4,0.001]
[1772047416242,3.06228834,2068.6,2068.1,0.46859263]
[1772047416420,3.52988097,2068.6,2068.1,0.001]
[1772047417129,3.06228834,2068.4,2068.1,0.001]
[1772047418220,3.06228834,2068.4,2067.8,0.001]
[1772047419817,4.27101047,2068.3,2067.8,0.001]
[1772047421745,4.27097739,2068.4,2067.8,1.68682074]
[1772047421919,4.27097739,2068.4,2067.8,2.89582405]
[1772047422843,4.27097739,2068.4,2067.9,1.6822087]
[1772047424139,3.06228834,2068.3,2067.9,1.6822087]
[1772047424448,3.06228834,2068.3,2067.9,2.89116035]
[1772047425355,3.06228834,2068.3,2067.9,2.89036035]
[1772047425642,1.20868905,2068.4,2067.9,2.89036035]
[1772047425844,4.27276374,2068.8,2068.1,1.6705642]
[1772047426224,3.06228834,2068.7,2068.2,1.6669339]
[1772047426425,1.2104754,2068.8,2068.2,1.6669339]
[1772047426624,1.2104754,2068.8,2068.4,1.6669339]
[1772047427531,0.002,2068.5,2068.4,1.6669339]
[1772047429048,0.002,2068.7,2068.4,1.6669339]
[1772047430858,0.002,2068.8,2068.5,1.65250332]
[1772047431158,4.83231944,2069.4,2068.5,1.65250332]
[1772047431159,0.002,2069.6,2068.8,3.34208826]
[1772047431387,1.20999791,2069.6,2069.1,3.34008826]
[1772047431531,1.20999791,2069.6,2069.1,5.26908826]
[1772047431922,0.002,2069.6,2069.3,3.34008826]
[1772047432463,4.83329411,2069.9,2069.6,3.34008826]
[1772047432464,0.002,2069.9,2069.6,3.34008826]
[1772047432747,0.002,2069.9,2069.6,6.47701302]
[1772047433157,0.002,2069.9,2069.7,3.34008826]
[1772047434739,4.83033821,2070.3,2069.8,30.0]
[1772047434931,4.83033821,2070.3,2069.9,3.34008826]
[1772047435127,4.83033821,2070.3,2069.7,3.34008826]
[1772047435388,4.83033821,2070.3,2069.8,8.604]
[1772047435538,4.83033821,2070.3,2069.8,8.308]
[1772047435741,4.83033821,2070.3,2069.8,6.654]
[1772047436472,4.26980862,2070.4,2069.7,2.34004437]
[1772047436634,4.26980862,2070.4,2069.9,3.39841884]
[1772047437141,1.20752028,2070.4,2069.9,3.39841884]
[1772047437356,1.20747197,2070.5,2069.9,3.39841884]
[1772047438042,4.64017597,2070.5,2069.9,4.60620474]
[1772047438353,4.64017597,2070.5,2069.9,3.39841884]
[1772047439636,4.64017597,2070.5,2069.9,4.6061994]
[1772047439968,4.64207085,2070.7,2070.1,3.39841884]
[1772047440166,0.002,2070.9,2070.5,5.73846321]
[1772047440482,3.432704,2071.0,2070.6,1.932]
[1772047440695,3.432704,2071.0,2070.5,1.933]
[1772047440866,3.432704,2071.0,2070.6,3.54742387]
[1772047441048,0.002,2071.1,2070.7,33.39841884]
[1772047441363,4.63955893,2071.5,2070.8,5.73846321]
[1772047441565,4.63955893,2071.5,2070.9,1.935]
[1772047441865,7.17429677,2072.0,2071.4,2.34004437]
[1772047441866,3.432704,2072.0,2071.4,2.34004437]
[1772047442176,3.432704,2072.0,2071.4,4.27504437]
[1772047442461,3.432704,2072.0,2070.2,5.40052725]
[1772047442462,3.432704,2072.0,2071.0,1.935]
[1772047442662,3.432704,2071.8,2070.9,1.935]
[1772047442891,3.432704,2071.6,2070.9,3.14218074]
[1772047443066,1.20673842,2071.7,2070.9,3.14218074]
[1772047443067,1.20673842,2071.7,2071.0,33.39841884]
[1772047443241,4.63942863,2071.8,2071.2,30.0]
[1772047443846,4.63942863,2071.8,2071.3,1.936]
[1772047444869,3.432704,2071.7,2071.0,1.937]
[1772047445449,3.432704,2071.6,2070.6,4.60578753]
[1772047445748,3.432704,2071.6,2070.8,30.0]
[1772047446562,3.432704,2071.6,2070.7,1.936]
[1772047446780,3.432704,2071.4,2070.7,1.936]
[1772047448188,3.432704,2071.4,2070.3,6.54293569]
[1772047449194,3.432704,2071.2,2070.1,1.28956342]
[1772047449402,3.432704,2071.0,2069.9,3.39841884]
[1772047449555,3.432704,2070.8,2069.8,30.0]
[1772047449865,3.432704,2070.8,2069.7,3.101]
[1772047450428,3.432704,2070.8,2069.7,3.0999]
[1772047450983,3.432704,2070.6,2069.7,4.30779206]
[1772047451183,3.432704,2070.6,2069.7,1.20789206]
[1772047452186,3.432704,2070.6,2069.7,4.6063109]
[1772047452560,3.432704,2070.6,2069.6,1.937]
[1772047453486,3.432704,2070.4,2069.6,1.937]
[1772047453869,3.432704,2070.4,2069.9,0.001]
[1772047455467,1.20755446,2070.3,2069.6,1.9378]
[1772047455908,4.64025846,2070.3,2069.6,6.54417614]
[1772047456793,4.64025846,2070.3,2069.6,5.33621884]
[1772047457184,4.64025846,2070.3,2069.6,6.54417688]
[1772047457385,4.64025846,2070.3,2069.6,5.33621884]
[1772047458593,4.64025846,2070.3,2069.6,6.54417197]
[1772047458813,1.20755446,2070.3,2069.6,3.39941884]
[1772047459093,4.82981019,2070.5,2069.8,3.39841884]
[1772047459886,3.432704,2070.4,2069.8,3.39841884]
[1772047460087,3.432704,2070.4,2069.6,3.39941884]
[1772047460415,3.432704,2070.4,2069.4,3.39921884]
[1772047461811,3.432704,2070.2,2069.4,3.39921884]
[1772047462392,3.432704,2070.2,2069.4,4.60728745]
[1772047462618,3.432704,2070.2,2069.5,3.39841884]
[1772047463804,1.20767112,2070.1,2069.5,3.39841884]
[1772047464413,1.20767112,2070.1,2069.5,4.6064376]
[1772047464719,1.20767112,2070.1,2069.6,3.39841884]
[1772047464920,4.83031252,2070.3,2069.6,3.39841884]
[1772047465094,1.20751976,2070.4,2069.9,3.39841884]
[1772047465512,3.432704,2070.6,2070.1,3.39841884]
[1772047465513,1.20742682,2070.6,2070.1,3.39841884]
[1772047465832,1.14735722,2070.7,2070.1,4.60603475]
[1772047465996,1.14735722,2070.7,2070.1,3.39841884]
[1772047466323,1.14735722,2070.7,2070.1,4.60606614]
[1772047466507,1.14735722,2070.7,2070.2,3.35315685]
[1772047467500,0.002,2070.4,2070.0,3.35315685]
[1772047468021,1.14735722,2070.7,2070.1,3.35315685]
[1772047468217,0.002,2070.6,2070.1,3.35315685]
[1772047468421,4.47402778,2071.4,2070.5,3.35315685]
[1772047468593,1.20894268,2071.4,2070.7,3.35315685]
[1772047468796,0.002,2070.9,2070.7,3.35315685]
[1772047468990,0.002,2071.4,2071.1,3.35315685]
[1772047469787,0.002,2071.4,2071.3,3.36216943]
[1772047470006,0.002,2071.9,2071.4,3.36216943]
[1772047471729,0.002,2071.9,2071.5,30.0]
[1772047471951,0.002,2071.9,2071.6,4.56891846]
[1772047472104,0.002,2071.9,2071.7,3.36216943]
[1772047472966,5.08428865,2072.3,2071.7,3.36216943]
[1772047472967,0.25872885,2072.3,2071.7,3.36216943]
[1772047473228,0.25872885,2072.3,2071.8,0.08192]
[1772047473396,0.25872885,2072.3,2071.7,3.36216943]
[1772047473397,1.4651292,2072.3,2071.7,3.36216943]
[1772047473591,1.4651292,2072.3,2071.8,3.36216943]
[1772047473811,3.46123197,2072.2,2071.7,1.939]
[1772047474015,3.46123197,2072.2,2071.2,4.56915609]
[1772047474016,3.46123197,2072.0,2071.2,4.56915609]
[1772047474208,4.82602191,2072.2,2071.5,3.36216943]
[1772047474209,1.20648236,2072.2,2071.5,3.36216943]
[1772047474402,1.46513223,2072.3,2071.6,3.36216943]
[1772047475102,1.40515137,2072.3,2071.6,3.44408943]
[1772047475617,1.40515137,2072.3,2071.6,3.36216943]
[1772047476203,3.46123197,2072.2,2071.4,3.1449067]
[1772047476602,3.46123197,2072.2,2071.4,6.50707613]
[1772047476809,3.46123197,2072.2,2071.5,3.36216943]
[1772047477804,3.46123197,2072.2,2071.5,3.36096943]
[1772047478511,4.60772365,2072.2,2071.5,4.56778748]
[1772047479737,4.60772365,2072.2,2071.5,4.56781682]
[1772047480035,0.19872885,2072.3,2071.6,3.36216943]
[1772047480215,0.19872885,2072.3,2071.6,3.36316943]
[1772047480419,3.46123197,2072.2,2071.6,0.001]
[1772047480648,1.40512624,2072.3,2071.2,1.936]
[1772047480649,3.46323197,2072.1,2071.2,1.936]
[1772047480802,3.46323197,2072.1,2071.4,0.001]
[1772047481007,3.46123197,2072.0,2071.4,0.001]
[1772047482717,3.46123197,2071.8,2071.4,0.001]
[1772047482919,3.46123197,2071.8,2070.7,4.56948268]
[1772047483135,3.46123197,2071.6,2070.7,6.50548268]
[1772047484224,3.46123197,2071.6,2070.7,5.29816943]
[1772047484430,3.46123197,2071.6,2070.7,1.936]
[1772047484755,4.66826171,2071.2,2070.4,3.36216943]
[1772047485454,4.66826171,2071.2,2070.4,4.56965652]
[1772047485844,4.66826171,2071.2,2070.4,4.56965353]
[1772047486450,3.46123197,2071.2,2070.5,3.36216943]
[1772047486626,1.20701747,2071.3,2070.5,3.36216943]
[1772047486827,8.28870193,2071.5,2070.7,3.36216943]
[1772047487322,3.46123197,2071.4,2070.5,4.56956929]
[1772047487528,4.66791215,2071.8,2071.0,3.36216943]
[1772047487924,4.66791215,2071.8,2071.0,3.36096943]
[1772047488755,3.46123197,2071.7,2070.9,1.934]
[1772047489858,1.20679667,2071.6,2070.9,1.934]
[1772047490436,4.66800389,2071.7,2070.9,6.50336278]
[1772047490756,3.46123197,2071.6,2070.9,3.14119335]
[1772047491730,3.46123197,2071.6,2070.9,6.50336278]
[1772047492233,4.66806456,2071.6,2070.9,6.50336278]
[1772047492531,7.43363571,2071.9,2071.0,3.36216943]
[1772047492532,1.20668018,2071.8,2071.0,3.36216943]
[1772047492950,1.20668018,2071.8,2071.0,3.36196943]
[1772047493349,4.66791215,2071.8,2071.0,3.36196943]
[1772047493559,3.46123197,2071.7,2071.0,3.36196943]
[1772047494838,1.20679667,2071.6,2071.0,4.56906469]
[1772047496065,4.31864569,2071.6,2070.9,1.935]
[1772047496361,4.31864569,2071.6,2070.9,0.001]
[1772047496547,4.31864569,2071.6,2070.9,1.20820418]
[1772047496747,4.31864569,2071.6,2070.9,0.001]
[1772047497354,4.31864569,2071.6,2070.9,3.2010865]
[1772047497553,1.20679667,2071.6,2070.9,3.2010865]
[1772047498660,4.31857287,2071.8,2070.9,3.2010865]
[1772047498855,4.31857287,2071.8,2071.1,3.2000865]
[1772047499744,3.11184902,2071.7,2070.9,0.001]
[1772047500847,4.31864569,2071.6,2070.9,0.001]
[1772047501258,3.11184902,2071.5,2070.9,0.001]
[1772047501569,3.11184902,2071.5,2070.6,0.001]
[1772047502553,3.11184902,2071.3,2070.6,0.001]
[1772047503273,1.20702974,2071.2,2070.6,0.001]
[1772047503449,3.11184902,2071.1,2070.6,0.001]
[1772047505393,1.2071463,2071.0,2070.6,0.001]
[1772047505671,3.11184902,2070.9,2070.6,0.001]
[1772047505899,3.11184902,2070.6,2069.8,0.001]
[1772047506051,3.11184902,2070.3,2069.8,0.001]
[1772047507364,5.44184902,2070.6,2069.8,0.001]
[1772047507574,4.31928683,2070.5,2069.8,0.001]
[1772047508070,1.20743781,2070.5,2069.8,3.2010865]
[1772047508274,3.11184902,2070.4,2069.8,0.001]
[1772047508469,1.20743781,2070.5,2069.8,3.2010865]
[1772047508859,4.31928683,2070.5,2069.8,3.2010865]
[1772047509860,1.20735082,2070.7,2070.0,3.2000865]
[1772047510503,4.31919984,2070.7,2070.0,3.2000865]
[1772047511561,4.31919984,2070.7,2070.0,3.58434131]
[1772047511760,4.31919984,2070.7,2070.0,3.2000865]
[1772047512086,3.11184902,2070.6,2069.8,4.40892895]
[1772047512276,3.11184902,2070.6,2069.8,4.40892809]
[1772047512859,3.11184902,2070.6,2069.8,4.40893181]
[1772047513059,3.11184902,2070.6,2069.8,4.40893107]
[1772047513468,3.11184902,2070.6,2069.9,3.2000865]
[1772047514076,3.11184902,2070.6,2069.9,4.40785567]
[1772047514077,1.20743781,2070.5,2069.9,4.40785567]
[1772047514964,4.31926956,2070.6,2069.9,4.40785567]
[1772047515173,4.82936065,2070.7,2070.0,3.2000865]
[1772047515174,1.20735683,2070.7,2070.0,3.2000865]
[1772047516285,1.20735683,2070.7,2070.1,4.40775762]
[1772047516487,3.11184902,2071.0,2070.2,3.2000865]
[1772047516787,4.31903063,2071.0,2070.2,3.2000865]
[1772047518378,4.31903063,2071.0,2070.3,1.20755446]
[1772047518569,3.11184902,2070.7,2070.0,3.79]
[1772047519676,3.11184902,2070.7,2070.0,4.99772275]
[1772047519881,3.11184902,2070.7,2070.0,8.19780925]
[1772047520792,1.2073795,2070.6,2070.0,8.19780925]
[1772047521092,4.31921655,2070.7,2070.1,3.2000865]
[1772047522393,4.31921655,2070.7,2070.4,0.001]
[1772047522983,4.31921655,2070.7,2070.1,3.2010865]
[1772047522984,3.11184902,2070.6,2070.1,0.001]
[1772047523576,4.8312532,2070.8,2070.4,3.2000865]
[1772047523577,0.002,2070.8,2070.4,3.2000865]
[1772047523770,0.002,2070.8,2070.2,3.2000865]
[1772047524878,0.002,2070.8,2070.4,3.2000865]
[1772047526996,0.002,2070.8,2070.6,3.0394861]
[1772047527179,0.002,2071.0,2070.6,3.0394861]
[1772047527376,0.002,2071.0,2070.7,3.0394861]
[1772047528712,0.002,2071.0,2070.8,3.0394861]
[1772047529899,0.002,2071.0,2070.4,1.929]
[1772047530198,3.16687155,2071.0,2070.4,1.929]
[1772047530504,3.16687155,2071.0,2070.2,1.20757288]
[1772047531200,3.16687155,2071.0,2070.3,3.25446953]
[1772047531401,0.002,2071.0,2070.3,3.25446953]
[1772047531768,1.20720459,2070.9,2070.2,1.20757288]
[1772047532097,4.37207614,2070.9,2070.2,1.20757288]
[1772047535700,4.31207614,2070.9,2070.2,4.46204241]
[1772047536204,3.16487155,2070.7,2069.9,0.001]
[1772047536506,2.33573913,2070.8,2069.9,0.001]
[1772047536507,3.16487155,2070.4,2069.9,0.001]
[1772047537900,3.16487155,2070.4,2069.9,1.20877851]
[1772047538122,4.3723793,2070.4,2069.9,0.001]
[1772047538278,7.99434796,2070.7,2069.9,0.001]
[1772047538474,1.20743492,2070.6,2069.9,0.001]
[1772047538789,1.20736832,2070.7,2070.0,3.25446953]
[1772047539804,4.37223987,2070.7,2070.0,3.25446953]
[1772047540310,4.37223987,2070.7,2070.1,1.20767112]
[1772047540486,1.20736832,2070.7,2070.1,4.46214065]
[1772047542403,0.002,2070.8,2070.1,3.25446953]
[1772047542611,0.002,2070.8,2070.0,1.20768807]
[1772047542612,3.16687155,2070.8,2070.0,4.4621576]
[1772047543296,3.16687155,2070.8,2070.0,6.3891576]
[1772047544382,3.16687155,2070.8,2070.0,1.927]
[1772047544708,3.16487155,2070.5,2069.9,0.001]
[1772047546815,3.16487155,2070.3,2069.9,0.001]
[1772047547315,3.16487155,2070.3,2069.5,0.001]
[1772047547813,3.16487155,2069.9,2069.5,0.001]
[1772047548901,4.37271771,2069.8,2069.5,0.001]
[1772047550315,1.20784616,2069.8,2069.5,0.001]
[1772047550524,4.37248434,2070.3,2069.5,0.001]
[1772047550706,4.83046555,2070.2,2069.5,0.001]
[1772047552322,7.9953371,2070.2,2069.5,0.001]
[1772047554194,3.16487155,2070.1,2069.5,0.001]
[1772047555622,1.20772946,2070.0,2069.5,0.001]
[1772047557120,4.46570226,2070.0,2069.5,0.001]
[1772047557421,3.1979728,2069.9,2069.5,0.001]
[1772047557633,1.20784616,2069.8,2069.5,0.001]
[1772047560907,1.20784616,2069.8,2069.7,0.001]
[1772047562122,3.2579728,2069.8,2069.3,0.001]
[1772047562333,3.2579728,2069.8,2069.2,0.001]
[1772047562617,3.2579728,2069.8,2068.9,1.2083255]
[1772047562618,3.2579728,2069.8,2068.9,4.30074582]
[1772047562834,3.2579728,2069.8,2068.9,3.0923879]
[1772047562835,2.33573913,2069.8,2068.9,3.0923879]
[1772047563067,3.2579728,2069.3,2068.6,0.001]
[1772047563201,3.2579728,2069.2,2068.6,0.001]
[1772047563715,2.65628889,2069.9,2068.8,3.0923879]
[1772047563716,5.5799728,2069.7,2068.8,3.0923879]
[1772047563898,3.2579728,2069.6,2068.8,3.0923879]
[1772047564323,1.20802126,2069.5,2068.9,3.0923879]
[1772047564830,4.46598109,2069.6,2068.9,3.0923879]
[1772047565015,1.20800829,2069.6,2068.9,3.0923879]
[1772047565415,4.8306648,2069.8,2069.0,3.0923879]
[1772047566128,4.7706648,2069.8,2069.0,3.0923879]
[1772047566324,4.7706648,2069.8,2069.2,3.0923879]
[1772047568538,3.2579728,2069.8,2069.0,3.0923879]
[1772047570577,3.2579728,2069.6,2069.0,4.30068985]
[1772047571923,4.46586639,2069.8,2069.1,3.0923879]
[1772047572143,4.83326886,2069.9,2069.3,3.0923879]
[1772047572144,1.20982485,2069.9,2069.3,3.0923879]
[1772047572516,1.20982485,2069.9,2069.4,1.20807963]
[1772047573449,1.20982485,2069.9,2069.5,3.0923879]
[1772047573450,0.002,2069.9,2069.5,3.0923879]
[1772047574854,0.002,2069.9,2069.6,3.0923879]
[1772047575028,0.002,2070.2,2069.6,3.0923879]
[1772047575448,0.0012,2070.2,2069.6,3.0923879]
[1772047576055,0.0012,2070.2,2069.7,3.0923879]
[1772047576854,1.20767112,2070.1,2069.4,4.30043568]
[1772047577357,1.20767112,2070.1,2069.5,3.0923879]
[1772047577556,3.2579728,2070.0,2069.3,3.0923879]
[1772047577756,3.2579728,2070.0,2069.2,1.919]
[1772047577952,3.2579728,2070.0,2068.9,1.20833948]
[1772047578858,3.2579728,2070.0,2068.9,4.30072738]
[1772047579161,3.2579728,2069.8,2068.9,4.30072738]
[1772047581032,4.46587732,2069.7,2068.9,4.30072738]
[1772047581258,3.2579728,2069.6,2068.9,3.0923879]
[1772047581963,3.2579728,2069.6,2068.9,4.30075183]
[1772047582162,4.46587732,2069.7,2069.0,3.0923879]
[1772047583154,4.46587732,2069.7,2069.0,4.30066864]
[1772047583358,3.2579728,2069.6,2068.9,1.20836463]
[1772047583664,3.2579728,2069.6,2068.9,4.30075253]
[1772047584960,3.2579728,2069.6,2068.9,3.0923879]
[1772047585337,1.20802126,2069.5,2068.9,4.30071973]
[1772047585939,4.09392393,2069.5,2068.9,3.0923879]
[1772047586146,4.09392393,2069.5,2068.9,4.30075388]
[1772047586562,4.09392393,2069.5,2068.9,3.0923879]
[1772047586761,2.88590267,2069.4,2068.8,3.12840307]
[1772047586961,2.88590267,2069.4,2069.1,0.001]
[1772047587462,1.20813801,2069.3,2069.1,0.001]
[1772047589243,4.35013799,2069.3,2069.1,0.001]
[1772047592158,4.35013799,2069.3,2068.8,0.001]
[1772047592159,3.14199998,2069.2,2068.8,0.001]
[1772047592474,4.35025477,2069.1,2068.8,0.001]
[1772047592651,1.20825479,2069.1,2068.8,0.001]
[1772047594667,4.8329868,2069.2,2068.8,0.001]
[1772047595255,4.8321868,2069.2,2068.8,0.001]
[1772047596082,7.97418678,2069.2,2068.8,0.001]
[1772047597258,3.14199998,2069.1,2068.5,0.001]
[1772047598983,3.14199998,2068.9,2068.5,0.001]
[1772047599485,3.14199998,2068.8,2068.3,0.001]
[1772047600613,3.14119998,2068.8,2068.3,0.001]
[1772047601060,3.14199998,2068.6,2068.3,0.001]
[1772047601394,3.14199998,2068.6,2068.5,0.001]
[1772047601763,4.3504784,2068.8,2068.5,0.001]
[1772047601997,3.14199998,2068.8,2068.5,0.001]
[1772047602297,4.83537393,2069.0,2068.5,0.54420946]
[1772047602298,0.002,2069.0,2068.5,0.54420946]
[1772047602660,3.14199998,2068.9,2068.5,0.001]
[1772047603056,4.35041926,2068.9,2068.5,0.001]
[1772047604076,1.2103543,2069.0,2068.5,0.001]
[1772047605184,3.14399998,2069.0,2068.5,0.001]
[1772047605397,3.14319998,2069.0,2068.5,0.001]
[1772047605994,3.14319998,2069.0,2068.3,0.001]
[1772047607076,3.14199998,2068.8,2068.3,0.001]
[1772047610276,4.3504884,2068.7,2068.3,0.001]
[1772047612399,4.35049745,2068.7,2068.3,0.001]
[1772047613171,4.35049745,2068.7,2068.5,0.001]
[1772047613367,0.002,2068.6,2068.5,0.001]
[1772047614865,3.14399998,2068.6,2068.3,0.001]
[1772047615410,3.14319998,2068.6,2068.3,0.001]
[1772047617702,1.20860526,2068.5,2068.3,0.001]
[1772047618105,4.39276499,2068.5,2068.3,0.001]
[1772047618410,3.18415973,2068.4,2068.3,0.001]
[1772047618607,4.3939552,2068.6,2068.3,0.001]
[1772047618812,3.18415973,2068.5,2068.3,0.001]
[1772047618975,1.20974812,2068.6,2068.3,0.001]
[1772047619172,0.002,2068.8,2068.4,0.52820611]
[1772047620030,0.002,2068.8,2068.3,1.20971204]
[1772047620202,0.002,2068.8,2068.3,1.73791815]
[1772047620398,0.0012,2068.8,2068.3,1.73791815]
[1772047621000,0.0012,2068.8,2068.4,0.52619557]
[1772047621196,0.0012,2069.0,2068.3,1.56934185]
[1772047621504,0.0012,2069.0,2068.6,0.52297048]
[1772047621999,0.0012,2069.0,2068.7,1.7314589]
[1772047622396,0.0012,2069.0,2068.8,0.52097102]
[1772047622799,0.002,2069.1,2068.8,0.52097102]
[1772047624947,0.002,2069.1,2068.5,1.20860236]
[1772047624948,3.18615973,2069.1,2068.5,1.20860236]
[1772047625253,3.18615973,2069.1,2068.4,3.63245331]
[1772047625536,3.18535973,2069.1,2068.4,3.63245331]
[1772047625714,3.18535973,2069.1,2068.5,0.51472623]
[1772047626242,0.0012,2069.1,2068.5,0.51472623]
[1772047626553,3.12735973,2069.3,2069.0,0.001]
[1772047626710,4.33554215,2069.3,2069.0,0.001]
[1772047627604,3.18415973,2069.2,2069.0,0.001]
[1772047629504,4.39241452,2069.1,2069.0,0.001]
[1772047629713,3.18415973,2069.0,2068.5,0.001]
[1772047630402,3.18335973,2069.0,2068.5,0.001]
[1772047631834,3.18415973,2068.8,2068.5,0.001]
[1772047633311,3.18415973,2068.8,2068.3,0.001]
[1772047634237,4.39264815,2068.7,2068.3,0.001]
[1772047635461,4.39138207,2068.9,2068.3,0.5542255]
[1772047635606,3.18415973,2068.8,2068.3,0.0002]
[1772047636721,3.18415973,2068.6,2068.3,0.0002]
[1772047637358,3.18415973,2068.6,2068.0,0.001]
[1772047638847,3.18415973,2068.4,2068.0,0.001]
[1772047639441,3.18415973,2068.4,2068.2,0.001]
[1772047640047,3.18415973,2068.4,2068.0,0.001]
[1772047642350,3.18415973,2068.5,2067.7,0.60082713]
[1772047642576,0.002,2069.1,2068.3,0.60082713]
[1772047642577,4.39441862,2069.1,2068.3,0.60082713]
[1772047642717,0.002,2069.1,2068.5,0.60082713]
[1772047643216,1.21025721,2069.1,2068.5,0.60082713]
[1772047643410,4.39456173,2068.9,2068.4,1.771]
[1772047644318,3.18415973,2068.8,2068.4,1.771]
[1772047644752,3.18415973,2068.8,2067.9,3.70112547]
[1772047646323,4.15722542,2068.7,2067.9,3.70112547]
[1772047646962,2.948737,2068.6,2067.9,3.70112547]
[1772047647929,2.948737,2068.6,2067.9,2.49221393]
[1772047648128,2.948737,2068.6,2067.9,3.7011695]
[1772047648328,1.20860526,2068.5,2067.9,1.8071695]
[1772047648569,4.15734226,2068.5,2067.9,1.8071695]
[1772047649043,4.15734226,2068.5,2067.9,1.8071686]
[1772047649740,4.15734226,2068.5,2067.9,0.59821393]
[1772047650471,4.15734226,2068.5,2067.8,3.10196789]
[1772047650774,2.92845046,2068.4,2067.8,1.893]
[1772047651934,2.92845046,2068.4,2067.6,0.001]
[1772047652267,4.13696717,2068.7,2068.1,0.58342806]
[1772047652463,4.13885898,2068.9,2068.2,2.92276219]
[1772047652766,2.92845046,2068.8,2068.1,3.68226133]
[1772047652962,2.92845046,2068.8,2068.2,0.58042806]
[1772047653143,0.002,2068.6,2068.2,0.58042806]
[1772047654961,0.002,2068.6,2068.2,1.78917606]
[1772047656471,0.002,2068.6,2068.1,1.20983673]
[1772047656939,0.002,2068.6,2068.1,1.78074231]
[1772047658573,0.002,2068.6,2068.1,0.57190558]
[1772047658947,0.002,2068.6,2068.2,1.774873]
[1772047659258,1.21037339,2068.9,2068.4,0.56409242]
[1772047659775,2.92845046,2068.8,2068.1,1.77145796]
[1772047660783,2.92845046,2068.8,2068.1,1.20983359]
[1772047661148,1.20848842,2068.7,2068.1,1.20983359]
[1772047661441,1.20848842,2068.7,2068.1,1.76674604]
[1772047662381,4.13693888,2068.7,2068.1,0.55791245]
[1772047663278,4.13693888,2068.7,2068.1,1.76673162]
[1772047663577,2.92845046,2068.6,2068.1,0.55791245]
[1772047663745,2.92845046,2068.6,2068.1,1.7667477]
[1772047664585,2.92845046,2068.6,2068.0,1.894]
[1772047665445,2.92845046,2068.4,2068.3,0.001]
[1772047665690,2.93045046,2068.4,2068.3,0.001]
[1772047666174,2.93045046,2068.4,2068.0,1.895]
[1772047666763,0.002,2068.6,2068.3,2.34033413]
[1772047666963,2.93045046,2068.9,2068.3,2.88508133]
[1772047667282,0.002,2068.9,2068.5,0.5447472]
[1772047667580,0.002,2069.1,2068.6,4.09121049]
[1772047667784,4.83452587,2069.4,2068.7,0.54232952]
[1772047667785,1.21008307,2069.4,2068.7,0.54232952]
[1772047668549,1.21008307,2069.4,2068.8,4.202349]
[1772047668750,0.002,2069.4,2068.8,4.202349]
[1772047668948,2.92845046,2069.8,2069.1,2.34033413]
[1772047669153,1.20778781,2069.9,2069.4,2.34033413]
[1772047669366,1.20977446,2070.0,2069.4,2.34033413]
[1772047669857,1.20977446,2070.0,2069.2,3.64413759]
[1772047670170,2.92845046,2069.9,2069.3,3.805333]
[1772047670376,2.92845046,2069.9,2069.3,2.394933]
[1772047671480,2.92845046,2069.9,2069.2,1.896]
[1772047671852,1.20784616,2069.8,2069.2,3.10418544]
[1772047672787,4.13629662,2069.8,2069.2,1.896]
[1772047673408,4.13629662,2069.8,2069.2,3.10419194]
[1772047673693,1.20784616,2069.8,2069.2,1.896]
[1772047673895,2.92845046,2069.7,2069.2,1.896]
[1772047674202,1.20796289,2069.6,2069.2,1.896]
[1772047675991,2.92845046,2069.7,2069.2,3.10418843]
[1772047676293,4.13635794,2069.7,2069.2,3.10418843]
[1772047677592,2.92845046,2069.7,2069.2,3.10418843]
[1772047677998,0.002,2069.4,2069.2,3.10418843]
[1772047678688,0.002,2069.4,2069.2,3.59221281]
[1772047678878,0.002,2069.6,2069.2,3.59221281]
[1772047679396,2.94979668,2069.9,2069.4,2.34033413]
[1772047679572,0.002,2069.9,2069.4,2.82035383]
[1772047680564,0.002,2069.9,2069.5,1.20802126]